bitfinex-derivatives/quotes_BTCF0:USTF0_20240917
["timestamp","ask_amount","ask_price","bid_price","bid_amount"]
[1726533725063,0.0024,58126.0,58125.0,0.086017]
[1726533729869,0.0024,58126.0,58125.0,0.15478293]
[1726533730270,0.0024,58126.0,58125.0,0.086017]
[1726533733360,0.0024,58126.0,58117.0,0.05448087]
[1726533733361,1.12714438,58126.0,58124.0,0.06877655]
[1726533733668,1.12714438,58126.0,58120.0,0.08589377]
[1726533733669,0.172036,58124.0,58123.0,0.05158633]
[1726533733972,0.17204,58123.0,58122.0,0.05158633]
[1726533734271,0.172042,58122.0,58121.0,0.05158633]
[1726533734456,0.172442,58122.0,58121.0,0.05158633]
[1726533734664,0.086421,58122.0,58120.0,0.05158633]
[1726533734863,0.286423,58121.0,58120.0,0.05158633]
[1726533735167,0.086027,58118.0,58117.0,0.07215742]
[1726533735372,0.447227,58118.0,58117.0,0.07215742]
[1726533736171,0.447227,58118.0,58117.0,0.00338087]
[1726533737364,0.448227,58118.0,58117.0,0.00338087]
[1726533737669,0.534254,58118.0,58117.0,0.00338087]
[1726533738366,0.535254,58118.0,58117.0,0.00338087]
[1726533740174,0.535254,58118.0,58117.0,0.0549231]
[1726533741061,1.851454,58118.0,58117.0,0.0008]
[1726533741965,1.937481,58118.0,58117.0,0.0008]
[1726533746773,1.337481,58118.0,58117.0,0.0008]
[1726533747378,1.937481,58118.0,58117.0,0.0008]
[1726533747781,0.735254,58118.0,58117.0,0.0008]
[1726533747977,0.449227,58118.0,58117.0,0.2008]
[1726533748179,0.449227,58118.0,58117.0,0.0008]
[1726533752480,0.448227,58118.0,58117.0,0.0008]
[1726533753787,0.447227,58118.0,58117.0,0.0008]
[1726533754681,0.454227,58118.0,58117.0,0.0008]
[1726533754881,0.461227,58118.0,58117.0,0.0008]
[1726533755282,0.49580562,58118.0,58117.0,0.0008]
[1726533758588,0.49580562,58118.0,58117.0,0.086829]
[1726533760384,0.40977862,58118.0,58117.0,0.086829]
[1726533760697,0.3608,58123.0,58117.0,1.117]
[1726533760989,0.3608,58123.0,58122.0,0.086021]
[1726533761788,0.3678,58123.0,58122.0,0.086021]
[1726533761988,0.3748,58123.0,58122.0,0.087221]
[1726533762490,0.3678,58123.0,58122.0,0.087221]
[1726533762692,0.3798,58123.0,58122.0,0.087221]
[1726533763493,0.3838,58123.0,58122.0,0.088221]
[1726533765188,0.3838,58123.0,58122.0,0.15688856]
[1726533765392,0.3838,58123.0,58122.0,0.088221]
[1726533765894,0.3838,58123.0,58122.0,0.15688793]
[1726533768193,0.3838,58123.0,58122.0,0.088221]
[1726533781107,0.023,58123.0,58122.0,0.088221]
[1726533787002,0.023,58123.0,58122.0,0.0022]
[1726533787204,0.10902,58123.0,58122.0,0.07092223]
[1726533787601,0.10902,58123.0,58122.0,0.0022]
[1726533788095,0.10902,58123.0,58122.0,0.07092223]
[1726533788904,0.10902,58123.0,58122.0,0.0022]
[1726533789099,0.10902,58123.0,58122.0,0.07092223]
[1726533790207,0.46982,58123.0,58122.0,0.0022]
[1726533791901,0.46982,58123.0,58122.0,0.088221]
[1726533792100,0.3838,58123.0,58122.0,0.088221]
[1726533793108,0.46982,58123.0,58122.0,0.088221]
[1726533794805,0.46982,58123.0,58122.0,0.0022]
[1726533795109,0.46982,58123.0,58122.0,0.07099869]
[1726533796907,0.66982,58123.0,58122.0,0.0022]
[1726533797209,0.46982,58123.0,58122.0,0.0022]
[1726533797413,0.3838,58123.0,58122.0,0.15701969]
[1726533798310,0.3838,58123.0,58122.0,0.15701266]
[1726533800506,0.3838,58123.0,58122.0,0.088221]
[1726533802110,0.3838,58123.0,58122.0,0.0022]
[1726533802317,0.46982,58123.0,58122.0,0.0022]
[1726533807222,0.59982,58123.0,58122.0,0.07098964]
[1726533807421,0.7298209,58123.0,58122.0,0.0022]
[1726533807719,0.8158409,58123.0,58122.0,0.0022]
[1726533808915,0.5998209,58123.0,58122.0,0.0022]
[1726533809119,0.77111537,58123.0,58122.0,0.0022]
[1726533809319,0.77111208,58123.0,58122.0,0.0022]
[1726533810421,0.77110805,58123.0,58122.0,0.0022]
[1726533811121,0.77110805,58123.0,58122.0,0.1322]
[1726533812112,0.41030805,58123.0,58122.0,0.1322]
[1726533812421,0.77110805,58123.0,58122.0,0.1322]
[1726533812818,0.5998209,58123.0,58122.0,0.1322]
[1726533813617,0.77115004,58123.0,58122.0,0.1322]
[1726533814717,0.77115004,58123.0,58122.0,0.0022]
[1726533814918,0.54701131,58123.0,58122.0,0.0022]
[1726533815421,0.46982,58123.0,58122.0,0.07098964]
[1726533816015,0.55584,58123.0,58122.0,0.0022]
[1726533816224,0.46982,58123.0,58122.0,0.0022]
[1726533818529,0.55584,58123.0,58122.0,0.0022]
[1726533819517,0.55584,58123.0,58122.0,0.05379508]
[1726533820126,0.46982,58123.0,58122.0,0.05379508]
[1726533820324,0.55584,58123.0,58122.0,0.05379508]
[1726533820522,0.55584,58123.0,58122.0,0.0022]
[1726533821427,0.91664,58123.0,58122.0,0.0022]
[1726533822520,1.00266,58123.0,58122.0,0.0022]
[1726533822727,2.11882,58123.0,58122.0,0.0022]
[1726533823117,2.0328,58123.0,58122.0,0.0022]
[1726533823313,2.11882,58123.0,58122.0,0.0022]
[1726533826332,2.0328,58123.0,58122.0,0.0022]
[1726533827222,2.11882,58123.0,58122.0,0.0022]
[1726533827428,1.4328,58123.0,58122.0,0.0022]
[1726533829832,0.91664,58123.0,58122.0,0.0022]
[1726533830531,1.1081513,58123.0,58122.0,0.0022]
[1726533831729,0.3865513,58123.0,58122.0,0.0022]
[1726533831926,1.04643789,58123.0,58122.0,0.0022]
[1726533832123,0.3865513,58123.0,58122.0,0.0022]
[1726533832423,1.04643789,58123.0,58122.0,0.0022]
[1726533832736,1.1081513,58123.0,58122.0,0.0022]
[1726533832938,0.086034,58113.0,58112.0,0.004]
[1726533833137,0.3616,58113.0,58110.0,0.086039]
[1726533833331,0.0008,58111.0,58110.0,0.086039]
[1726533833526,0.12979789,58111.0,58110.0,0.086039]
[1726533834225,0.21583489,58111.0,58110.0,0.088039]
[1726533834729,0.086039,58110.0,58107.0,0.086043]
[1726533834928,0.22180373,58110.0,58107.0,0.086043]
[1726533835128,0.29871161,58110.0,58107.0,0.086043]
[1726533835434,0.29870445,58110.0,58107.0,0.086043]
[1726533835634,0.16174688,58110.0,58107.0,0.086043]
[1726533836428,0.16074688,58110.0,58109.0,0.0516]
[1726533837338,0.16074688,58110.0,58109.0,0.0536]
[1726533837539,0.083839,58110.0,58109.0,0.0536]
[1726533838538,0.0008,58110.0,58109.0,0.13964]
[1726533840035,0.0008,58110.0,58109.0,0.26964]
[1726533841241,0.0008,58110.0,58109.0,0.26764]
[1726533841441,0.0008,58110.0,58109.0,0.35353377]
[1726533842642,0.0008,58110.0,58109.0,0.47039521]
[1726533844536,0.0008,58110.0,58109.0,0.38450144]
[1726533844843,0.086839,58110.0,58109.0,0.25450144]
[1726533845237,0.086839,58110.0,58109.0,0.16846144]
[1726533845439,0.086839,58110.0,58109.0,0.0496]
[1726533845440,0.21655944,58110.0,58109.0,0.0496]
[1726533847130,0.21655944,58110.0,58109.0,0.1796]
[1726533847938,0.21645201,58110.0,58109.0,0.1796]
[1726533852451,0.21645201,58110.0,58109.0,0.47063019]
[1726533852452,0.27520133,58110.0,58109.0,0.47063019]
[1726533852652,0.086839,58110.0,58109.0,0.47063019]
[1726533852844,0.0008,58110.0,58109.0,0.38461498]
[1726533853244,0.3608,58112.0,58111.0,0.086037]
[1726533853445,0.3608,58112.0,58111.0,0.17205035]
[1726533853651,0.3608,58112.0,58111.0,0.086037]
[1726533853840,0.36987325,58112.0,58111.0,0.086037]
[1726533854549,0.37187325,58112.0,58111.0,0.086037]
[1726533855744,0.37387325,58112.0,58111.0,0.086037]
[1726533855940,0.01307325,58112.0,58111.0,0.086037]
[1726533856153,0.37387325,58112.0,58111.0,0.086037]
[1726533861956,0.37387325,58112.0,58111.0,0.17205035]
[1726533862150,0.37387325,58112.0,58111.0,0.086037]
[1726533862350,0.37387325,58112.0,58111.0,0.2911477]
[1726533862557,0.37387325,58112.0,58111.0,0.20513435]
[1726533864765,0.01307325,58112.0,58111.0,0.20513435]
[1726533864970,0.37387325,58112.0,58111.0,0.20513435]
[1726533867075,0.37387325,58112.0,58111.0,0.20503161]
[1726533867470,0.14272777,58112.0,58111.0,0.086037]
[1726533867672,0.50352777,58112.0,58111.0,0.086037]
[1726533869079,0.65127823,58112.0,58111.0,0.086037]
[1726533874382,0.29047823,58112.0,58111.0,0.086037]
[1726533874579,0.45990925,58112.0,58111.0,0.17207907]
[1726533875374,0.09910925,58112.0,58111.0,0.29117194]
[1726533875575,0.45990925,58112.0,58111.0,0.29117194]
[1726533876782,0.45990925,58112.0,58111.0,0.17207907]
[1726533877081,0.45990925,58112.0,58111.0,0.29117506]
[1726533877481,0.09910925,58112.0,58111.0,0.29117506]
[1726533877884,0.45990925,58112.0,58111.0,0.29117506]
[1726533878585,0.37387325,58112.0,58111.0,0.20513299]
[1726533879679,0.01307325,58112.0,58111.0,0.20513299]
[1726533879986,0.37387325,58112.0,58111.0,0.20513299]
[1726533880184,0.37387325,58112.0,58111.0,0.33513299]
[1726533881681,0.37387325,58112.0,58111.0,0.20513299]
[1726533882086,0.37387325,58112.0,58111.0,0.29118984]
[1726533882384,0.37387325,58112.0,58111.0,0.20513299]
[1726533882574,0.50382579,58112.0,58111.0,0.086037]
[1726533882777,0.56554204,58112.0,58111.0,0.086037]
[1726533883387,0.50382579,58112.0,58111.0,0.086037]
[1726533883988,0.33143354,58112.0,58111.0,0.086037]
[1726533884176,0.69223354,58112.0,58111.0,0.086037]
[1726533884481,0.50382579,58112.0,58111.0,0.086037]
[1726533884682,0.49475254,58112.0,58111.0,0.086037]
[1726533886083,0.13395254,58112.0,58111.0,0.086037]
[1726533889483,0.004,58112.0,58111.0,0.30728246]
[1726533889790,0.004,58112.0,58111.0,0.31637323]
[1726533893495,0.004,58112.0,58111.0,0.30728246]
[1726533893992,0.004,58112.0,58111.0,0.20460861]
[1726533894496,0.004,58112.0,58111.0,0.30728246]
[1726533895793,0.004,58112.0,58111.0,0.20460861]
[1726533896093,0.004,58112.0,58111.0,0.086037]
[1726533896293,0.004,58112.0,58111.0,0.20461977]
[1726533896893,0.004,58112.0,58111.0,0.30781319]
[1726533897486,0.004,58112.0,58111.0,0.086037]
[1726533897889,0.08123203,58112.0,58111.0,0.086037]
[1726533898092,0.13404359,58112.0,58111.0,0.086037]
[1726533901491,0.13404359,58112.0,58111.0,0.216037]
[1726533902300,0.66612843,58112.0,58111.0,0.216037]
[1726533903395,0.49484359,58112.0,58111.0,0.216037]
[1726533903696,0.66603378,58112.0,58111.0,0.216037]
[1726533904397,0.66602222,58112.0,58111.0,0.216037]
[1726533904598,0.49294302,58112.0,58111.0,0.3346405]
[1726533904794,0.17119019,58112.0,58111.0,0.3346405]
[1726533905504,0.17119019,58112.0,58111.0,0.33467969]
[1726533908103,0.17119019,58112.0,58111.0,0.43787311]
[1726533908498,0.00258118,58116.0,58115.0,0.086032]
[1726533908797,0.3608,58124.0,58123.0,0.08602]
[1726533909000,0.3608,58124.0,58123.0,0.29054977]
[1726533909202,0.3608,58124.0,58123.0,0.08642]
[1726533911112,0.3748,58124.0,58123.0,0.08642]
[1726533911709,0.3748,58124.0,58123.0,0.0004]
[1726533911896,0.3748,58124.0,58123.0,0.0014]
[1726533911897,0.3878,58124.0,58123.0,0.0014]
[1726533913108,0.473818,58124.0,58122.0,0.06874185]
[1726533913403,0.086021,58122.0,58121.0,0.05155747]
[1726533913596,0.086021,58122.0,58120.0,0.05413778]
[1726533913597,0.086023,58121.0,58120.0,0.05413778]
[1726533913799,0.086423,58121.0,58120.0,0.05413778]
[1726533914101,0.086023,58121.0,58120.0,0.00258031]
[1726533914301,0.0004,58122.0,58120.0,0.13258031]
[1726533914501,0.0004,58122.0,58121.0,0.15476485]
[1726533914703,0.0004,58122.0,58121.0,0.0004]
[1726533915197,0.086421,58122.0,58121.0,0.0004]
[1726533915812,0.097421,58122.0,58121.0,0.0004]
[1726533916001,0.108421,58122.0,58121.0,0.0014]
[1726533917110,0.03122396,58122.0,58121.0,0.07014777]
[1726533917313,0.03122396,58122.0,58121.0,0.0014]
[1726533918203,0.03122396,58122.0,58121.0,0.07014777]
[1726533919701,0.13676178,58122.0,58119.0,0.08226344]
[1726533919910,0.13676178,58122.0,58119.0,0.16828944]
[1726533919911,0.0004,58120.0,58119.0,0.16828944]
[1726533920207,0.25211704,58120.0,58119.0,0.16828944]
[1726533920598,0.27703128,58120.0,58119.0,0.16828944]
[1726533920797,0.13085206,58120.0,58119.0,0.16828944]
[1726533921405,0.13985206,58120.0,58119.0,0.16828944]
[1726533922013,0.328163,58120.0,58119.0,0.16828944]
[1726533922209,0.13985206,58120.0,58119.0,0.16828944]
[1726533923112,0.14885206,58120.0,58119.0,0.16828944]
[1726533923309,0.32004282,58120.0,58119.0,0.16828944]
[1726533923811,0.30293112,58120.0,58119.0,0.25431544]
[1726533924407,0.30293112,58120.0,58119.0,0.172052]
[1726533924606,0.30293112,58120.0,58119.0,0.302052]
[1726533927720,0.17247906,58120.0,58119.0,0.42082061]
[1726533927925,0.17247906,58120.0,58119.0,0.42081404]
[1726533932920,0.17247906,58120.0,58119.0,0.42082292]
[1726533934424,0.0184,58120.0,58119.0,0.42082292]
[1726533934917,0.05303504,58120.0,58119.0,0.302052]
[1726533937220,0.17284698,58120.0,58119.0,0.302052]
[1726533938221,0.05303504,58120.0,58119.0,0.086026]
[1726533938430,0.05303504,58120.0,58112.0,0.086036]
[1726533938431,0.3608,58111.0,58094.0,0.08588987]
[1726533938720,0.3608,58111.0,58090.0,0.086068]
[1726533938721,0.3608,58092.0,58090.0,0.086068]
[1726533939026,0.3608,58102.0,58091.0,0.3608]
[1726533939222,0.3608,58102.0,58096.0,0.3608]
[1726533939223,0.027899,58101.0,58096.0,0.3608]
[1726533939417,0.027899,58101.0,58100.0,0.086054]
[1726533939717,0.027899,58101.0,58100.0,0.602414]
[1726533939915,0.027899,58101.0,58100.0,0.802414]
[1726533940321,0.027899,58101.0,58100.0,0.804014]
[1726533940630,0.028899,58101.0,58100.0,1.404014]
[1726533940823,0.3608,58102.0,58100.0,1.404014]
[1726533941024,0.3608,58102.0,58101.0,0.51636]
[1726533941231,0.3618,58102.0,58101.0,0.51636]
[1726533941420,0.001,58102.0,58101.0,1.47716]
[1726533941623,0.004,58108.0,58101.0,1.47716]
[1726533941829,0.004,58112.0,58107.0,0.2]
[1726533942127,0.3608,58113.0,58100.0,0.01056418]
[1726533942128,0.3608,58108.0,58100.0,0.01056418]
[1726533942323,0.001,58102.0,58101.0,0.086052]
[1726533942718,0.3608,58108.0,58101.0,1.46241457]
[1726533942934,0.3608,58108.0,58104.0,0.10305608]
[1726533943233,0.3618,58108.0,58107.0,0.2]
[1726533943431,0.3618,58108.0,58107.0,0.31725309]
[1726533943932,0.3628,58108.0,58107.0,0.31725309]
[1726533944629,0.3618,58108.0,58107.0,0.31725309]
[1726533945231,0.3618,58108.0,58107.0,0.2]
[1726533945629,0.3618,58108.0,58107.0,0.202]
[1726533946227,0.3608,58108.0,58107.0,0.202]
[1726533946733,0.3608,58108.0,58107.0,0.204]
[1726533947436,0.3628,58108.0,58107.0,0.202]
[1726533948330,0.3628,58108.0,58107.0,0.2]
[1726533948636,0.3638,58108.0,58107.0,0.2]
[1726533949235,0.3648,58108.0,58100.0,0.01056418]
[1726533949433,0.3608,58103.0,58101.0,0.11727947]
[1726533949731,0.31775026,58103.0,58100.0,0.0016]
[1726533950041,0.086452,58101.0,58100.0,0.0016]
[1726533950934,0.086452,58101.0,58100.0,0.0036]
[1726533951734,0.085452,58101.0,58100.0,0.0036]
[1726533952435,0.085452,58101.0,58100.0,0.0056]
[1726533952730,0.085452,58101.0,58100.0,0.004]
[1726533952922,0.085452,58101.0,58100.0,0.005]
[1726533953836,0.085452,58101.0,58100.0,0.004]
[1726533954525,0.0569,58102.0,58097.0,0.00258162]
[1726533954526,0.086057,58098.0,58097.0,0.00258162]
[1726533954726,0.447657,58098.0,58097.0,0.00258162]
[1726533955740,0.447657,58098.0,58097.0,0.00458162]
[1726533955931,0.3626,58098.0,58087.0,0.00258181]
[1726533956233,0.3616,58088.0,58087.0,0.00258181]
[1726533957040,0.3616,58088.0,58087.0,0.00458181]
[1726533957726,0.36097182,58088.0,58087.0,0.00458181]
[1726533958423,0.36197182,58088.0,58087.0,0.09065481]
[1726533958827,0.36297182,58088.0,58087.0,0.08865481]
[1726533959028,0.72377182,58088.0,58087.0,0.08865481]
[1726533959332,0.72377182,58088.0,58087.0,0.00258181]
[1726533960430,0.72377182,58088.0,58087.0,0.08865481]
[1726533960637,0.0028,58088.0,58087.0,0.08865481]
[1726533960938,0.0028,58088.0,58087.0,0.13855481]
[1726533961132,0.0028,58088.0,58087.0,0.14786379]
[1726533961840,0.0018,58088.0,58087.0,0.14786379]
[1726533962147,0.0028,58088.0,58087.0,0.14786379]
[1726533962843,0.3608,58093.0,58087.0,0.14786379]
[1726533963144,0.00658233,58095.0,58094.0,0.086063]
[1726533963340,0.00258233,58095.0,58094.0,0.086063]
[1726533963547,0.004,58102.0,58101.0,0.086052]
[1726533963748,0.3608,58104.0,58102.0,0.08605]
[1726533964139,0.3608,58104.0,58103.0,0.086049]
[1726533965653,0.3718,58104.0,58103.0,0.086049]
[1726533965854,0.3828,58104.0,58103.0,0.086049]
[1726533966352,0.3748,58104.0,58103.0,0.086049]
[1726533966746,0.3678,58104.0,58103.0,0.086049]
[1726533969251,0.3608,58104.0,58103.0,0.086049]
[1726533969445,0.3608,58104.0,58103.0,0.089049]
[1726533969850,0.3608,58104.0,58103.0,0.088049]
[1726533970949,0.68866,58103.0,58093.0,0.00088]
[1726533971149,0.68866,58103.0,58061.0,0.00258348]
[1726533971150,0.086092,58074.0,58061.0,0.00258348]
[1726533971348,0.8631,58079.0,58066.0,0.2]
[1726533971349,0.3608,58067.0,58066.0,0.2]
[1726533971552,0.3608,58069.0,58066.0,0.2]
[1726533972546,0.001,58067.0,58066.0,0.006]
[1726533972967,0.3608,58069.0,58061.0,0.20258348]
[1726533973172,0.0008,58062.0,58061.0,0.20258348]
[1726533975371,0.001,58062.0,58061.0,0.20338348]
[1726533976177,0.002,58062.0,58061.0,0.20838348]
[1726533979174,0.002,58062.0,58061.0,0.00838348]
[1726533981373,1.31868,58062.0,58061.0,0.00838348]
[1726533981573,1.43839,58062.0,58061.0,0.00838348]
[1726533981973,1.43639,58062.0,58061.0,0.00338348]
[1726533982171,1.43839,58062.0,58061.0,0.00338348]
[1726533982375,0.08811,58062.0,58061.0,0.00338348]
[1726533987776,0.08811,58062.0,58061.0,0.0008]
[1726533988686,0.80971,58062.0,58061.0,0.0008]
[1726533989685,1.92639,58062.0,58061.0,0.0008]
[1726533989976,1.92639,58062.0,58053.0,0.00258385]
[1726533989977,0.086112,58061.0,58053.0,0.00258385]
[1726533990177,0.3616,58054.0,58053.0,0.00258385]
[1726533990979,0.447722,58054.0,58053.0,0.00258385]
[1726533991385,2.06709138,58054.0,58020.0,0.3608]
[1726533991589,2.06709138,58054.0,58013.0,0.3608]
[1726533991590,0.3608,58036.0,58034.0,0.2]
[1726533991777,0.3608,58036.0,58035.0,0.0928]
[1726533992186,1.67772,58036.0,58013.0,0.0090479]
[1726533992488,0.3608,58029.0,58022.0,0.3608]
[1726533992687,0.3608,58029.0,58026.0,0.2]
[1726533992992,0.3608,58029.0,58021.0,0.08617]
[1726533992993,0.3608,58029.0,58021.0,0.2]
[1726533993193,0.0008,58022.0,58018.0,0.0025851]
[1726533993392,0.0008,58022.0,58020.0,0.2]
[1726533994385,0.0008,58022.0,58021.0,0.3608]
[1726533994590,0.0008,58022.0,58020.0,1.31704]
[1726533994591,0.0008,58022.0,58020.0,1.31792]
[1726533994784,0.0008,58022.0,58021.0,0.87784]
[1726533994983,0.001,58029.0,58021.0,0.87784]
[1726533994984,0.31769749,58035.0,58026.0,0.086163]
[1726533995180,0.31769749,58035.0,58031.0,0.2]
[1726533995992,0.31869749,58035.0,58031.0,0.2]
[1726533996494,0.31969749,58035.0,58028.0,0.00258468]
[1726533996695,0.0008,58029.0,58028.0,0.00258468]
[1726533997196,0.0008,58029.0,58028.0,1.11958468]
[1726533997897,0.0018,58029.0,58028.0,1.12058468]
[1726533998083,0.31869749,58035.0,58028.0,1.12058468]
[1726533998084,0.31869749,58035.0,58028.0,0.57008468]
[1726533998280,0.31869749,58035.0,58034.0,0.0004]
[1726533998587,0.3633847,58047.0,58034.0,0.2004]
[1726533998894,0.3633847,58047.0,58041.0,0.0004]
[1726533999094,0.2859,58042.0,58041.0,0.0458]
[1726533999287,0.3633847,58047.0,58043.0,0.086138]
[1726533999488,0.3633847,58047.0,58046.0,0.2004]
[1726533999489,0.0025847,58047.0,58046.0,0.2004]
[1726533999791,0.3608,58054.0,58046.0,0.2004]
[1726534000091,0.3608,58054.0,58053.0,0.2004]
[1726534001096,0.3608,58054.0,58053.0,0.26868356]
[1726534001893,0.3668,58054.0,58053.0,0.26868356]
[1726534002697,0.3668,58054.0,58053.0,0.06868356]
[1726534002994,0.3668,58054.0,58053.0,0.0004]
[1726534003190,0.3668,58054.0,58053.0,0.06868356]
[1726534003389,0.3668,58054.0,58053.0,0.0004]
[1726534003693,0.652922,58054.0,58053.0,0.0004]
[1726534004891,0.452922,58054.0,58053.0,0.0004]
[1726534009485,0.3668,58054.0,58053.0,0.0004]
[1726534016397,0.7276,58054.0,58053.0,0.0004]
[1726534023108,0.7276,58054.0,58053.0,0.086523]
[1726534023807,0.7276,58054.0,58053.0,0.40376311]
[1726534024210,0.3668,58054.0,58053.0,0.40376311]
[1726534025109,0.3668,58054.0,58053.0,0.286523]
[1726534025804,0.3668,58054.0,58050.0,0.00258386]
[1726534026007,0.3668,58054.0,58034.0,0.3213]
[1726534026008,0.2,58047.0,58030.0,0.11571521]
[1726534026211,0.722,58051.0,58030.0,0.11571521]
[1726534026212,0.5608,58031.0,58030.0,0.11659521]
[1726534026520,0.5608,58031.0,58027.0,0.002585]
[1726534026521,0.3608,58031.0,58027.0,0.002585]
[1726534026715,0.3608,58031.0,58028.0,0.0973]
[1726534027215,0.3608,58031.0,58029.0,0.0461]
[1726534028416,0.3618,58031.0,58029.0,0.0461]
[1726534030217,0.3628,58031.0,58029.0,0.0461]
[1726534030715,0.002585,58034.0,58029.0,0.0461]
[1726534031505,0.002585,58034.0,58030.0,0.3608]
[1726534032106,0.3608,58036.0,58032.0,0.2]
[1726534032914,0.3608,58036.0,58032.0,0.086154]
[1726534033113,0.002,58034.0,58032.0,0.086154]
[1726534034014,0.001,58034.0,58032.0,0.086154]
[1726534034413,0.3658,58036.0,58032.0,0.086154]
[1726534034617,0.005,58036.0,58034.0,0.2]
[1726534034813,0.10165816,58041.0,58039.0,0.086144]
[1726534035019,0.12246794,58050.0,58040.0,0.5608]
[1726534035221,0.12246794,58050.0,58049.0,0.3608]
[1726534036120,0.12246794,58050.0,58049.0,0.446929]
[1726534037419,0.00358413,58050.0,58049.0,0.446929]
[1726534037720,0.00758413,58050.0,58049.0,0.446929]
[1726534037915,0.00758413,58050.0,58027.0,0.002585]
[1726534037916,0.1723,58049.0,58027.0,0.002585]
[1726534038116,0.3616,58032.0,58020.0,0.446971]
[1726534038318,0.3616,58032.0,58018.0,0.00258539]
[1726534038319,0.3616,58032.0,58021.0,0.116737]
[1726534038519,0.3586,58032.0,58023.0,0.086168]
[1726534038719,0.3586,58032.0,58024.0,0.046]
[1726534038905,0.3586,58032.0,58024.0,0.132166]
[1726534039114,0.3608,58027.0,58024.0,0.046]
[1726534039417,0.3586,58032.0,58024.0,0.046]
[1726534040119,0.3586,58032.0,58031.0,0.001]
[1726534040620,0.3606,58032.0,58024.0,0.047]
[1726534040810,0.0008,58025.0,58024.0,0.047]
[1726534041218,0.0008,58025.0,58024.0,0.046]
[1726534043119,0.0018,58025.0,58024.0,0.047]
[1726534044241,0.0028,58025.0,58024.0,0.046]
[1726534046332,0.0008,58032.0,58024.0,1.16304]
[1726534046333,0.3616,58032.0,58024.0,1.16304]
[1726534046524,0.00258463,58040.0,58028.0,0.5608]
[1726534046525,0.00658463,58040.0,58028.0,0.5608]
[1726534046722,0.00258463,58040.0,58034.0,0.2]
[1726534047030,0.00258463,58040.0,58033.0,0.086152]
[1726534047228,0.0008,58034.0,58033.0,0.086152]
[1726534047716,0.00258463,58040.0,58036.0,0.086148]
[1726534047916,0.00258463,58040.0,58037.0,0.0474]
[1726534047917,0.005,58038.0,58037.0,0.0474]
[1726534048321,0.005,58038.0,58037.0,0.333547]
[1726534049025,0.005,58038.0,58037.0,0.335147]
[1726534049328,0.00258463,58040.0,58037.0,0.335147]
[1726534049527,0.5608,58038.0,58028.0,0.00088]
[1726534049727,0.5608,58038.0,58009.0,0.3608]
[1726534049728,0.086178,58017.0,58009.0,0.3608]
[1726534049930,0.3616,58029.0,58009.0,0.3608]
[1726534049931,0.0008,58010.0,58009.0,0.3608]
[1726534050123,0.3608,58014.0,58009.0,0.3608]
[1726534050632,0.3588,58014.0,58009.0,0.3608]
[1726534052223,0.001,58010.0,58009.0,0.3608]
[1726534052737,0.3598,58014.0,58009.0,0.3608]
[1726534053127,0.001,58014.0,58011.0,0.086186]
[1726534053326,0.001,58017.0,58012.0,0.086184]
[1726534053629,0.00258576,58024.0,58012.0,0.086184]
[1726534053630,0.001,58014.0,58012.0,0.086184]
[1726534053930,0.002,58014.0,58012.0,0.086184]
[1726534055328,0.001,58014.0,58012.0,0.086184]
[1726534055824,0.001,58014.0,58009.0,0.3608]
[1726534056030,0.001,58014.0,58013.0,0.086183]
[1726534056224,0.002,58014.0,58013.0,0.086183]
[1726534056923,0.001,58014.0,58013.0,0.086183]
[1726534057119,0.002,58014.0,58013.0,0.086183]
[1726534059023,0.001,58014.0,58013.0,0.086183]
[1726534059328,0.002,58014.0,58013.0,0.086183]
[1726534067341,0.002,58014.0,58010.0,0.0025854]
[1726534067342,0.086186,58011.0,58010.0,0.0025854]
[1726534067528,0.386986,58011.0,58010.0,0.0025854]
[1726534068341,0.086986,58011.0,58010.0,0.0025854]
[1726534068540,0.0008,58011.0,58010.0,0.0025854]
[1726534068742,0.0008,58011.0,58010.0,0.8805454]
[1726534068938,0.0018,58011.0,58010.0,0.8805454]
[1726534069241,0.0018,58011.0,58010.0,0.0887724]
[1726534069440,0.3028,58011.0,58010.0,0.05154435]
[1726534069739,0.0028,58011.0,58006.0,0.05154435]
[1726534070046,0.0028,58011.0,58007.0,0.2017255]
[1726534070047,0.001,58011.0,58007.0,0.2017255]
[1726534070244,0.002,58011.0,58007.0,0.08576312]
[1726534070732,0.002,58011.0,58008.0,0.20165147]
[1726534071039,0.002,58011.0,58008.0,0.08576312]
[1726534073545,0.088186,58011.0,58008.0,0.08576312]
[1726534073736,0.088186,58011.0,58007.0,0.08576312]
[1726534073937,0.0008,58008.0,58007.0,0.08576312]
[1726534074133,0.0008,58008.0,58007.0,0.20032649]
[1726534075246,0.0018,58008.0,58007.0,0.20075537]
[1726534076646,0.0028,58008.0,58007.0,0.20075675]
[1726534076842,1.08076,58008.0,58005.0,0.08592751]
[1726534077045,0.086198,58003.0,57997.0,0.10309015]
[1726534077346,0.086211,57994.0,57990.0,0.10309015]
[1726534077536,0.287011,57994.0,57989.0,0.10309015]
[1726534077843,0.41702018,57994.0,57987.0,0.1433]
[1726534078040,0.2287518,57994.0,57987.0,0.229521]
[1726534078234,0.0287518,57994.0,57990.0,0.086217]
[1726534079136,0.0287518,57994.0,57987.0,0.1433]
[1726534079137,0.10295974,57994.0,57987.0,0.1433]
[1726534079345,0.0297518,57994.0,57987.0,0.1433]
[1726534079548,0.0297518,57994.0,57987.0,0.1238865]
[1726534079746,0.0008,57988.0,57987.0,0.1238865]
[1726534080249,0.0008,57988.0,57987.0,0.2101075]
[1726534080446,0.0008,57988.0,57987.0,1.3274675]
[1726534081751,0.0018,57988.0,57987.0,1.3274675]
[1726534082246,0.3648,57998.0,57987.0,1.3274675]
[1726534082247,0.46693488,57998.0,57987.0,1.2412465]
[1726534082452,0.00258655,57999.0,57996.0,0.3]
[1726534083547,0.46461488,58002.0,57998.0,0.6608]
[1726534083548,0.00168,58002.0,57998.0,0.6608]